[Event "Marshall CC U2400 03-2025"]
[Site "New York"]
[Date "2025.03.23"]
[Round "3.1"]
[White "Muthukumar, Haari"]
[Black "Zhao, Austin"]
[Result "1-0"]
[Annotator "TA"]
[ECO "B40"]
[WhiteElo "2202"]
[BlackElo "1819"]
[PlyCount "119"]
[EventDate "2025.03.20"]
[EventType "swiss"]
[EventCountry "USA"]
[SourceTitle "playchess.com"]
[Source "ChessBase"]
[SourceQuality "1"]
[TimeControl "5400+30"]

{[%evp 9,119,-15,32,37,33,43,127,81,118,128,162,154,158,158,182,177,170,162,166,151,168,168,221,222,197,176,174,187,179,147,145,136,162,169,185,166,244,220,471,454,585,454,391,344,408,185,175,181,197,183,176,156,214,218,219,214,212,196,204,228,222,209,235,235,238,235,244,240,240,245,239,232,312,291,304,261,281,299,442,448,491,492,446,445,589,572,1256,1185,1357,1204,5188,5091,4786,4806,2467,966,29971,29966,29976,29976,29980,29981,29981,29982,29981,29982,29982,29983,29982,29982,29982,29983]} 1. e4 {[%emt 0:00:03]} c5 {[%emt 0:00:18]} 2. Nf3 {[%emt 0:00:04][%cal Bg1f3,Bf3d4,Bd4b5][%mdl 32]} e6 {[%emt 0:00:04]} 3. d4 {[%emt 0:00:05]} cxd4 {[%emt 0:00:03]} 4. Nxd4 {[%emt 0:00:05]} Nf6 {[%emt 0:00:03]} 5. Nd2 {[%emt 0:00:09]} Qc7 {[%emt 0:11:25]} (5... d5 $11 {was preferable.}) 6. Nb5 $146 {[%emt 0:12:26] B40: Sicilian: 2...e6, Unusual lines.} (6. Bd3 d5 7. exd5 Nxd5 8. N2f3 Nf4 9. O-O Nxd3 10. cxd3 Nc6 11. Bg5 Bc5 12. Qe2 Be7 13. Rac1 O-O 14. Rfd1 Re8 15. b3 Nb4 16. Bxe7 Rxe7 17. Nh4 b6 18. Nb5 {½-½ Krstic,M (1627)-Andrejevic,M (1863) SRB-chT3 South 2017 (6.6)}) 6... Qc6 {[%emt 0:19:50][%cal Oa7a6]} 7. e5 {[%emt 0:07:42]} Ne4 {[%emt 0:02:42]} (7... a6 $1 $14) 8. Qg4 {[%emt 0:08:56]} (8. Qf3 $142 a6 9. Nxe4 axb5 10. Bd3) 8... Nxd2 {[%emt 0:02:00]} 9. Bxd2 {[%emt 0:00:18]} (9. Kxd2 a6 10. Nc3 Qc7 $15) 9... a6 {[%emt 0:06:42] [#]} 10. Nd6+ {[%emt 0:00:20][%mdl 512]} Bxd6 {[%emt 0:00:09]} 11. exd6 {[%emt 0:00:39]} Qxd6 {[%emt 0:07:38]} 12. Qxg7 {[%emt 0:01:18]} Qf8 {[%emt 0:00:27] Black is weak on the dark squares} 13. Qf6 {[%emt 0:04:05]} Rg8 {[%emt 0:01:15]} 14. g3 {[%emt 0:03:05]} Nc6 {[%emt 0:08:15]} 15. O-O-O $40 {[%emt 0:01:03][%mdl 128] White goes for the king.} Qe7 {[%emt 0:05:09]} (15... d6 $142 16. Bd3 Qe7 17. Qxe7+ Kxe7 18. Bxh7 Rh8) 16. Qh6 $18 {[%emt 0:00:58]} f6 {[%emt 0:11:05]} 17. Bc3 {[%emt 0:02:56]} e5 {[%emt 0:05:57]} 18. Bc4 {[%emt 0:00:58]} Rg6 {[%emt 0:02:36]} 19. Qe3 {[%emt 0:01:32]} d6 {[%emt 0:02:05]} 20. Bd3 {[%emt 0:05:29] White has more active pieces.} f5 {[%emt 0:00:39]} 21. Be2 $1 {[%emt 0:00:01]} Kd7 {[%emt 0:02:45]} 22. Bh5 {[%emt 0:03:03]} Rg8 {[%emt 0:00:47]} (22... Re6 $142 23. f4 Rh6) 23. f4 {[%emt 0:04:00]} e4 $2 {[%emt 0:00:54]} (23... Kc7 24. fxe5 dxe5) 24. Qb6 {[%emt 0:00:25]} Qe6 {[%emt 0:04:43] Repels Rd5} 25. b3 {[%emt 0:03:01]} Ke7 {[%emt 0:01:47]} 26. Be2 {[%emt 0:04:06] A strong pair of Bishops.} Rd8 {[%emt 0:00:13]} 27. Bc4 {[%emt 0:00:19]} (27. g4 $142) 27... d5 {[%emt 0:00:34]} 28. Qc5+ {[%emt 0:02:35]} Qd6 {[%emt 0:00:33]} 29. Rxd5 {[%emt 0:02:21]} Qxc5 {[%emt 0:00:36]} 30. Rxc5 {[%emt 0:00:03][%cal Og3g4]} Be6 {[%emt 0:00:40]} (30... Bd7 $16 31. Be2 Be6) 31. Bxe6 {[%emt 0:00:13]} Kxe6 {[%emt 0:00:04] [#]} 32. g4 $1 {[%emt 0:00:07][%mdl 512]} fxg4 {[%emt 0:00:57]} 33. Rh5 {[%emt 0:00:57] Hoping for f5+.} Rf8 {[%emt 0:01:38]} 34. Re1 {[%emt 0:03:49]} Rxf4 {[%emt 0:01:22]} 35. Bd2 $1 {[%emt 0:00:27]} ({Much less strong is} 35. Rxh7 $6 Raf8 $16) 35... Rf7 {[%emt 0:00:47]} 36. Rxe4+ {[%emt 0:00:08]} Kd7 {[%emt 0:00:21]} 37. Rxg4 {[%emt 0:00:09]} Re8 {[%emt 0:00:29]} 38. Rgh4 {[%emt 0:00:28]} Ree7 {[%emt 0:00:42] [#]} 39. Bg5 $1 {[%emt 0:00:37]} Re2 {[%emt 0:00:34]} 40. Rxh7 {[%emt 0:00:43]} Rxh7 {[%emt 0:00:39]} 41. Rxh7+ {[%emt 0:00:02][%mdl 4096] Endgame KRB-KRN. White is two pawns up.} Kc8 {[%emt 0:00:06]} 42. Bf4 {[%emt 0:03:12]} Rf2 {[%emt 0:01:10]} 43. Bg3 {[%emt 0:00:59]} Rf1+ {[%emt 0:00:26]} (43... Rg2 {is a better defense.} 44. Kb1 (44. Rc7+ Kd8 $18) 44... Nd4) 44. Kb2 {[%emt 0:00:17]} Nd4 {[%emt 0:00:46]} 45. Rc7+ {[%emt 0:00:13]} Kd8 {[%emt 0:00:04]} 46. Rxb7 {[%emt 0:00:23]} Ne2 {[%emt 0:00:18]} 47. Ra7 {[%emt 0:00:32]} Nxg3 {[%emt 0:00:28]} 48. hxg3 {[%emt 0:00:05] KR-KR. White is 3 pawns up.} Rf6 {[%emt 0:00:12]} 49. c4 {[%emt 0:00:16]} Rg6 {[%emt 0:00:10]} 50. Ka3 {[%emt 0:00:02]} Kc8 {[%emt 0:00:07]} 51. Kb4 {[%emt 0:00:09]} Kb8 {[%emt 0:00:06]} 52. Rf7 {[%emt 0:00:06]} Rxg3 {[%emt 0:00:04]} 53. Ka5 {[%emt 0:00:22] White mates.} Rg2 {[%emt 0:00:12]} 54. Kxa6 {[%emt 0:00:21]} Rxa2+ {[%emt 0:00:03]} 55. Kb6 {[%emt 0:00:10][%cal Rf7f8]} Kc8 {[%emt 0:00:06]} 56. b4 {[%emt 0:00:15]} Ra4 {[%emt 0:00:33]} 57. Kb5 {[%emt 0:00:07]} Ra3 {[%emt 0:00:41]} 58. c5 {[%emt 0:00:04][%cal Bc4c5,Bc5c6][%mdl 32]} Rh3 {[%emt 0:00:52]} 59. Kb6 {[%emt 0:00:12]} Rh6+ {[%emt 0:00:21]} 60. c6 {[%emt 0:00:08] Weighted Error Value: White=0.32/Black=0.66  Mistake:       	White=2     	Black=6      Inaccurate:     	---       	Black=4      OK:         	White=22    	Black=12     Best:        	White=2     	Black=5      Strong:       	White=1     	---        Brilliant:      	White=2     	---} 1-0

[Event "Marshall CC U2400 03-2025"]
[Site "New York"]
[Date "2025.03.23"]
[Round "3.2"]
[White "Bonin, Jay"]
[Black "Li, Robert"]
[Result "1-0"]
[Annotator "TA"]
[ECO "C49"]
[WhiteElo "2120"]
[BlackElo "1785"]
[PlyCount "103"]
[EventDate "2025.03.20"]
[EventType "swiss"]
[EventCountry "USA"]
[SourceTitle "playchess.com"]
[Source "ChessBase"]
[SourceQuality "1"]
[TimeControl "5400+30"]

{[%evp 10,103,16,13,16,18,14,12,33,25,55,54,76,77,81,70,59,27,39,47,43,42,35,16,8,12,38,11,98,106,112,43,45,28,40,26,24,50,26,39,128,106,120,115,118,133,196,202,189,191,196,198,192,191,212,208,226,202,161,144,150,132,137,126,211,209,210,209,199,197,189,189,329,293,807,640,929,808,1094,1131,1028,584,29954,29955,29956,29957,29949,29951,4631,4627,29967,29969,29994,29988,29988,29989]} 1. Nc3 {[%emt 0:00:04]} Nf6 {[%emt 0:00:22]} 2. e4 {[%emt 0:00:06]} e5 {[%emt 0:00:17]} 3. Nf3 {[%emt 0:00:12]} Nc6 {[%emt 0:00:17]} 4. Bb5 {[%emt 0:00:07]} Bb4 {[%emt 0:00:55]} 5. Bxc6 {[%emt 0:00:44]} dxc6 {[%emt 0:02:57]} 6. d3 {[%emt 0:00:16]} Bg4 {[%emt 0:01:50] The old main line. C49: Four Knights: 4 Bb5 Bb4.} 7. h3 {[%emt 0:00:31]} Bxf3 {[%emt 0:00:14]} 8. Qxf3 {[%emt 0:00:10]} Qd6 {[%emt 0:01:45] The position is equal.} 9. O-O $146 {[%emt 0:04:46]} (9. Bd2 Nd7 10. a3 Bxc3 11. Bxc3 Nf8 12. Qg3 Ng6 13. h4 h5 14. Qg5 Qf6 15. Qf5 Qxf5 16. exf5 Ne7 17. Bxe5 Nxf5 18. Bf4 Kd7 {½-½ Vaibhav,S (2535)-Sangma,R (2382) Mumbai Mayors Cup 6th 2013 (6)}) 9... h6 {[%emt 0:03:30]} 10. Ne2 {[%emt 0:01:00]} O-O-O {[%emt 0:02:01]} 11. a3 {[%emt 0:01:17]} Ba5 {[%emt 0:00:34]} 12. Be3 {[%emt 0:02:27]} Bb6 {[%emt 0:01:52]} 13. Rad1 {[%emt 0:04:02]} Qe6 {[%emt 0:03:19]} 14. c4 {[%emt 0:03:54]} Bxe3 {[%emt 0:00:43]} 15. Qxe3 {[%emt 0:00:51]} Kb8 {[%emt 0:00:24]} 16. f4 {[%emt 0:01:04]} exf4 {[%emt 0:03:15]} 17. Qxf4 {[%emt 0:00:44]} Rhe8 {[%emt 0:01:10]} 18. Ng3 {[%emt 0:00:45]} c5 {[%emt 0:03:31] [#]} (18... Nd7 $11 {remains equal.}) 19. Nf5 $1 $16 {[%emt 0:02:03]} Nh5 {[%emt 0:14:16]} 20. Qf2 {[%emt 0:02:25]} (20. Qh4 $16) 20... Qe5 $14 {[%emt 0:10:23]} 21. b4 {[%emt 0:01:17]} (21. g4 {simplifies} Nf6 22. Qh2 Nd7 23. Qxe5 Nxe5 24. Nxg7 Rg8 25. Nf5) 21... Qc3 {[%emt 0:14:42][%csl LRa3,LRb4,LRd3]} 22. Qxc5 {[%emt 0:07:40]} (22. bxc5 Rxd3 23. c6 (23. Rxd3 Qxd3 24. c6 Qxc4 $15) 23... g6 (23... Rxe4 $2 24. Qc5 $18) (23... bxc6 24. Rb1+ Kc8 25. Qxa7 $16) (23... Qxa3 $2 24. Ra1 $18) (23... Qxc4 24. Rc1 $11) 24. Nxh6 Ng3 (24... Rxe4 25. Qc5 $11) (24... bxc6 25. Rb1+ Ka8 26. Rbc1 $14) (24... Qxc4 25. Rxd3 Qxd3 26. Nxf7 $16) 25. Rxd3 Qxd3 $11) (22. Qf3 $5) 22... Rxd3 {[%emt 0:06:10]} 23. Rxd3 {[%emt 0:04:02]} Qxd3 {[%emt 0:00:15]} 24. Qd5 $40 {[%emt 0:12:20][%mdl 128] Black needs to defend precisely.} Rd8 {[%emt 0:18:14]} ({Black should try} 24... Qxe4 $14 25. Qxf7 Qe2 (25... Nf4 $2 26. Rxf4 Qe5 27. Rf1 $18)) 25. Qxf7 $16 {[%emt 0:05:30]} Ng3 {[%emt 0:01:11] [#]} 26. Nxg3 {[%emt 0:00:10]} Qxg3 {[%emt 0:00:11][%mdl 4096] Endgame KQR-KQR. White is a pawn up.} 27. Qe7 {[%emt 0:03:14][%cal Re7d8]} Qd6 {[%emt 0:02:51]} (27... Kc8 $16 28. c5 Qxa3) 28. Qxd6 {[%emt 0:02:55]} cxd6 $18 {[%emt 0:00:07] KR-KR. White is a pawn up.} 29. Rf7 {[%emt 0:00:27]} Rc8 {[%emt 0:01:54]} 30. Rxg7 {[%emt 0:00:27]} Rxc4 {[%emt 0:00:23]} 31. Rd7 {[%emt 0:05:15]} Rxe4 {[%emt 0:02:52]} 32. Rxd6 {[%emt 0:00:05]} h5 {[%emt 0:00:24][%cal Bh6h5,Bh5h4][%mdl 32]} 33. Kf2 {[%emt 0:00:45] Against Re3} Kc7 {[%emt 0:00:03]} 34. Rh6 {[%emt 0:00:16]} h4 {[%emt 0:00:15]} 35. Rg6 {[%emt 0:00:14]} Rc4 {[%emt 0:00:29]} 36. Rg4 {[%emt 0:00:13]} Rc2+ {[%emt 0:00:12]} (36... b5 $16 {was necessary.} 37. Ke3 Rc3+ 38. Kd4 Rc2) 37. Kf3 {[%emt 0:00:20]} Rc3+ {[%emt 0:00:19]} 38. Kf4 {[%emt 0:00:06]} Rxa3 {[%emt 0:00:31]} 39. Rxh4 {[%emt 0:00:20]} a5 {[%emt 0:00:27]} 40. bxa5 {[%emt 0:00:21]} Rxa5 {[%emt 0:00:25]} (40... Ra4+ $142 41. Kg3 Ra3+ 42. Kh2 Rxa5) 41. g4 {[%emt 0:00:51]} Kd6 $2 {[%emt 0:01:04]} (41... b5 42. Rh7+ Kc6) 42. Rh6+ {[%emt 0:00:34]} Kc7 {[%emt 0:01:50]} 43. Re6 {[%emt 0:01:01]} b5 {[%emt 0:00:54][%cal Bb7b5,Bb5b4,Bb4b3,Bb3b2][%mdl 32]} 44. g5 {[%emt 0:00:50]} b4 {[%emt 0:00:26]} 45. g6 {[%emt 0:01:07] And now g7 would win.} b3 {[%emt 0:00:59]} 46. g7 {[%emt 0:03:44]} Ra8 {[%emt 0:02:00]} 47. Kf5 {[%emt 0:00:23]} b2 {[%emt 0:00:28]} 48. Re1 {[%emt 0:00:04]} Kd6 {[%emt 0:00:48]} 49. Kg6 {[%emt 0:02:17]} Ra1 {[%emt 0:00:27]} 50. g8=Q {[%emt 0:00:11] White mates.} (50. g8=R Rxe1 51. Rb8 b1=Q+ $19 (51... b1=B+ 52. Kg5 $17) (51... b1=R $2 52. Ra8 $19)) 50... Rb1 {[%emt 0:01:04]} 51. Rd1+ Rxd1 {[%emt 0:00:00]} 52. Qd8+ {[%emt 0:00:10] Weighted Error Value: White=0.06 (flawless) /Black=0.62  Mistake:       	White=1     	Black=6      Inaccurate:     	White=2     	Black=3      OK:         	White=17    	Black=14     Best:        	White=2     	Black=3      Strong:       	White=1     	---} 1-0

[Event "Marshall CC U2400 03-2025"]
[Site "New York"]
[Date "2025.03.23"]
[Round "3.3"]
[White "Goel, Raben"]
[Black "Levin, Anthony"]
[Result "0-1"]
[Annotator "TA"]
[ECO "A21"]
[WhiteElo "1770"]
[BlackElo "1990"]
[PlyCount "210"]
[EventDate "2025.03.20"]
[EventType "swiss"]
[EventCountry "USA"]
[SourceTitle "playchess.com"]
[Source "ChessBase"]
[SourceQuality "1"]
[TimeControl "5400+30"]

{[%evp 9,209,-7,-7,8,0,-3,21,0,0,0,0,6,9,-15,-9,-18,-18,-46,-25,-33,-50,-78,-67,-68,-37,-53,-34,-86,-31,-24,-37,-88,-83,-89,-74,-114,-106,-95,-69,-77,-87,-87,-59,-67,-20,-33,0,0,0,0,8,9,16,2,3,4,9,8,3,0,0,-6,0,0,0,-8,0,-25,-6,-6,-3,-20,-2,-9,0,-12,-7,-11,0,-31,-22,-53,-27,-38,-58,-62,-62,-61,-55,-51,-44,-75,-75,-66,-66,-68,-70,-60,-50,-70,-69,-69,-65,-48,-18,-70,-62,-48,-32,-72,-31,-31,-37,-99,0,-15,-26,-386,-386,-570,-488,-532,-516,-596,-1083,-1086,-564,-560,-294,-714,-802,-4686,-4408,-3184,-2930,-1602,-2019,-2075,-970,-1510,0,-1231,-1570,-1538,-1122,-4119,-552,-29972,-29972,-29971,-4602,-29980,-29981,-29983,-29984,-29987,-29978,-29987,-29988,-29987,-29987,-29988,-29989,-29989,-29980,-29980,-29980,-29981,-29981,-29982,-29982,-29981,-29983,-29984,-29985,-29985,-29986,-29986,-29987,-29988,-29989,-29989,-29989,-29989,-29989,-29988,-29989,-29989,-29990,-29991,-29992,-29994,-29995,-29995,-29996,-29998,-29994,-29998,-29995,-29995,-29996,-29999]} 1. c4 {[%emt 0:00:07]} e5 {[%emt 0:00:18]} 2. Nc3 {[%emt 0:00:07]} Nf6 {[%emt 0:00:05]} 3. g3 {[%emt 0:00:06]} Bb4 {[%emt 0:00:21]} 4. Bg2 {[%emt 0:00:09]} Bxc3 {[%emt 0:00:22]} 5. bxc3 {[%emt 0:00:27]} O-O {[%emt 0:00:11]} 6. d3 {[%emt 0:00:35] A21: English Opening: 1...e5 2 Nc3.} h6 {[%emt 0:03:54]} 7. e4 {[%emt 0:07:42]} c6 {[%emt 0:01:53]} 8. Ne2 {[%emt 0:01:57] The position is equal.} d5 {[%emt 0:00:22]} 9. cxd5 {[%emt 0:01:05]} cxd5 {[%emt 0:00:03]} 10. exd5 {[%emt 0:01:23]} Nxd5 {[%emt 0:00:05]} 11. O-O {[%emt 0:00:14]} Nc6 {[%emt 0:00:05]} 12. Qb3 $146 {[%emt 0:09:46]} ({Predecessor:} 12. h3 Bf5 13. Kh2 Re8 14. Qb3 Nb6 15. Rd1 Qc7 16. Be3 Rad8 17. c4 Nd7 18. Nc3 {0-1 Czebe,A (2479)-Fressinet,L (2718) Corsica Masters rap 14th rapid 2010 (1.2)}) 12... Nb6 {[%emt 1:28:51]} 13. d4 {[%emt 0:03:50]} exd4 {[%emt 0:00:00]} 14. cxd4 {[%emt 0:07:18]} Be6 {[%emt 0:00:00]} 15. Qd1 {[%emt 0:09:48]} Bd5 {[%emt 0:00:00]} 16. Bxd5 {[%emt 0:01:01]} Qxd5 {[%emt 0:00:00]} 17. Be3 {[%emt 0:05:26]} Rad8 {[%emt 0:00:00]} 18. Nc3 {[%emt 0:13:48]} (18. Nf4 $15 Qe4 19. Qb1) 18... Qc4 {[%emt 0:00:00] Black has more active pieces.} (18... Qf5 $17) 19. Qb3 $15 {[%emt 0:04:45]} Nxd4 {[%emt 0:00:00]} 20. Qxc4 {[%emt 0:04:19]} (20. Bxd4 $15 Qxd4 (20... Rxd4 21. Nb5 $17) 21. Nb5) 20... Nxc4 $17 {[%emt 0:00:00][%cal Bb6c4,Bc4b2,Bb2d3,Bd3c5,Bc5e6][%mdl 32]} 21. Bxd4 {[%emt 0:00:10]} Rxd4 {[%emt 0:00:00]} 22. Rfe1 {[%emt 0:02:15]} Rfd8 {[%emt 0:00:00]} 23. Rac1 {[%emt 0:10:37]} Nb2 {[%emt 0:00:00] [#]} 24. Rb1 {[%emt 0:01:56]} Nd3 {[%emt 0:00:00]} 25. Re7 {[%emt 0:03:01]} Nc5 {[%emt 0:00:00]} 26. Rc7 $1 {[%emt 0:03:02]} Rc4 {[%emt 0:00:00]} (26... b6 $15 27. Rxa7 Rd3) 27. Nd1 $11 {[%emt 0:03:26]} Rcd4 {[%emt 0:00:00]} 28. Ne3 {[%emt 0:00:29]} Ne6 {[%emt 0:01:34]} 29. Rcxb7 {[%emt 0:00:21]} R4d7 {[%emt 0:01:05]} 30. Kg2 {[%emt 0:00:35]} h5 {[%emt 0:00:47]} 31. Rxd7 {[%emt 0:01:26]} Rxd7 {[%emt 0:00:17][%mdl 4096] Endgame KRN-KRN} 32. Rb5 {[%emt 0:01:00]} g6 {[%emt 0:00:05]} 33. h4 {[%emt 0:00:06]} Kf8 {[%emt 0:01:51]} 34. Rb2 {[%emt 0:00:52]} Rd4 {[%emt 0:00:46]} 35. Kf1 {[%emt 0:00:48]} Ra4 {[%emt 0:00:01]} 36. Ke2 {[%emt 0:01:00]} Nd4+ {[%emt 0:02:29]} 37. Ke1 {[%emt 0:00:32]} Kg7 {[%emt 0:00:06]} 38. Nc2 {[%emt 0:01:42]} Nc6 {[%emt 0:00:21]} 39. a3 {[%emt 0:01:19]} Ne5 {[%emt 0:00:18]} 40. Ke2 {[%emt 0:00:30] Dodges Nd3} Re4+ {[%emt 0:02:29]} 41. Ne3 {[%emt 0:00:37]} Ra4 {[%emt 0:00:10]} 42. Nc2 {[%emt 0:00:17]} Rc4 {[%emt 0:00:20]} 43. Kd2 {[%emt 0:01:16]} Ng4 {[%emt 0:00:25]} 44. Ke2 {[%emt 0:00:31]} Rc3 {[%emt 0:00:27]} 45. a4 {[%emt 0:00:38]} Rc4 {[%emt 0:00:23]} 46. Ra2 {[%emt 0:00:15]} a5 {[%emt 0:00:21]} 47. Ne3 {[%emt 0:00:16]} Nxe3 {[%emt 0:00:41]} 48. Kxe3 $15 {[%emt 0:00:10] KR-KR} Kf6 {[%emt 0:00:05]} 49. Kd3 {[%emt 0:00:54]} Rb4 {[%emt 0:00:04]} 50. Kc3 {[%emt 0:00:52]} Kf5 {[%emt 0:00:40]} 51. f3 {[%emt 0:00:21]} f6 {[%emt 0:00:24]} 52. Kd3 {[%emt 0:00:44]} g5 {[%emt 0:00:27]} 53. hxg5 {[%emt 0:00:22]} fxg5 {[%emt 0:00:07]} 54. Rc2 {[%emt 0:00:39]} Rxa4 {[%emt 0:02:41]} 55. Rc5+ $1 {[%emt 0:00:06]} Kf6 {[%emt 0:00:03]} 56. Rc6+ {[%emt 0:00:07]} Kf7 {[%emt 0:00:09]} 57. Rc7+ {[%emt 0:00:43]} ({Better is} 57. Rc5 $11) 57... Ke6 {[%emt 0:00:04]} 58. Rc6+ {[%emt 0:00:26]} Kd7 {[%emt 0:01:32]} 59. Rg6 {[%emt 0:00:13]} g4 {[%emt 0:00:16]} 60. Rg5 {[%emt 0:01:24]} gxf3 {[%emt 0:01:33]} 61. Rxh5 {[%emt 0:00:19]} (61. Ke3 $15) 61... Ke6 {[%emt 0:00:26]} (61... Ra3+ $17 62. Kd2 Ra2+ 63. Ke1 a4) 62. Rh6+ {[%emt 0:00:46]} Kf5 {[%emt 0:00:12]} 63. Rh5+ $2 {[%emt 0:00:21][%mdl 8192] White is on the road to losing.} (63. Ke3 $11) 63... Kg6 $19 {[%emt 0:00:14]} 64. Rb5 {[%emt 0:00:33]} (64. Rc5 $142 Ra2 65. Ke3) 64... Ra3+ {[%emt 0:00:36]} 65. Kd2 {[%emt 0:00:22]} a4 {[%emt 0:00:22]} 66. Ra5 {[%emt 0:00:24]} Ra2+ {[%emt 0:00:39]} ({Weaker is} 66... f2 67. Ke2 $17) 67. Ke1 {[%emt 0:00:15]} Kf6 {[%emt 0:01:00]} 68. Kf1 {[%emt 0:00:36]} Ke6 {[%emt 0:00:21]} 69. Ke1 $2 {[%emt 0:00:32]} (69. Ra8) 69... a3 {[%emt 0:00:35]} 70. Kf1 {[%emt 0:00:25]} Ra1+ {[%emt 0:00:55]} 71. Kf2 {[%emt 0:00:05] [#]} a2 $1 {[%emt 0:00:04]} 72. Ra6+ {[%emt 0:00:13]} Kd5 {[%emt 0:00:16]} 73. Ra5+ {[%emt 0:00:06]} Kd6 {[%emt 0:00:39]} (73... Kc4 $142 74. Ra8 Rh1 75. Rxa2 Rh2+ 76. Kxf3 Rxa2) 74. Ra6+ {[%emt 0:00:21]} Kd5 {[%emt 0:00:20]} 75. Ra5+ {[%emt 0:00:10]} (75. Kxf3 $2 {too greedy.} Rf1+ 76. Kg4 a1=Q $19 (76... a1=B 77. Kh3 $11) (76... a1=R $2 77. Rb6 $19)) 75... Kc4 {[%emt 0:00:10] White must now prevent ...Rh1.} 76. Ra4+ {[%emt 0:00:23]} Kb3 {[%emt 0:00:35]} 77. Ra8 {[%emt 0:00:20]} Rh1 {[%emt 0:00:21]} 78. Rxa2 {[%emt 0:01:04]} Kxa2 {[%emt 0:00:13]} 79. Kxf3 {[%emt 0:00:12] KR-KP} Kb3 {[%emt 0:00:05]} (79... Rg1 $142 80. Kf4 Kb3 81. Kg4 Kc3 82. Kf4 Kd4 83. g4 Rf1+ 84. Kg5 Kd5 85. Kh6 Rh1+ 86. Kg5 Ke5 87. Kg6 Rg1 88. Kg5 Rg3 89. Kh5 Kf6 (89... Kf4 90. Kg6 Kxg4 91. Kf7 Kf5 92. Ke7 Rd3 93. Kf7 Rd7+ 94. Ke8 Ke6 95. Kf8 Kf6 96. Kg8 Rb7 97. Kh8 Kg6 98. Kg8 Rb8#) 90. Kh4 Rg1 91. Kh3 Ke5 92. Kh4 Kf4 93. Kh5 Rxg4 94. Kh6 Kf5 95. Kh5 Re4 96. Kh6 Re7 97. Kh5 Rh7#) 80. g4 {[%emt 0:00:05]} Kc4 {[%emt 0:00:11] Black mates.} 81. Kf4 {[%emt 0:00:07]} Kd5 {[%emt 0:01:22]} 82. Kf5 {[%emt 0:00:09]} Kd6 {[%emt 0:00:26]} 83. Kf6 {[%emt 0:00:14]} Rf1+ {[%emt 0:00:40]} 84. Kg6 {[%emt 0:00:07]} Ke7 {[%emt 0:00:19]} 85. g5 {[%emt 0:00:08]} Kf8 {[%emt 0:00:28]} 86. Kh7 {[%emt 0:00:12]} Rh1+ {[%emt 0:00:06]} 87. Kg6 {[%emt 0:00:05]} Kg8 {[%emt 0:00:04]} 88. Kf6 {[%emt 0:00:05]} Ra1 {[%emt 0:00:08]} 89. g6 {[%emt 0:00:08]} Ra6+ {[%emt 0:00:03]} 90. Kf5 {[%emt 0:00:05]} Kg7 {[%emt 0:00:03]} 91. Ke5 {[%emt 0:00:04]} Kxg6 {[%emt 0:00:10] KR-K} 92. Kd5 {[%emt 0:00:06]} Kf5 {[%emt 0:00:07]} 93. Kd4 {[%emt 0:00:12]} Ra5 {[%emt 0:00:09]} 94. Kc4 {[%emt 0:00:05]} Ke4 {[%emt 0:00:23]} 95. Kb4 {[%emt 0:00:04]} Rd5 {[%emt 0:00:12]} 96. Kc4 {[%emt 0:00:04]} Rd8 {[%emt 0:00:09]} 97. Kc5 {[%emt 0:00:04]} Rd4 {[%emt 0:00:25]} 98. Kc6 {[%emt 0:00:04]} Rd5 {[%emt 0:00:15]} 99. Kc7 {[%emt 0:00:04]} Ke5 {[%emt 0:00:13]} 100. Kb6 {[%emt 0:00:04]} Kd6 {[%emt 0:00:14]} 101. Kb7 {[%emt 0:00:03]} Rb5+ {[%emt 0:00:27]} 102. Kc8 {[%emt 0:00:05]} Kc6 {[%emt 0:00:10]} 103. Kd8 {[%emt 0:00:03]} Rb7 {[%emt 0:00:06]} 104. Ke8 {[%emt 0:00:04]} Kd6 {[%emt 0:00:12]} 105. Kd8 {[%emt 0:00:05]} Rb8# {[%emt 0:00:09] Weighted Error Value: White=0.12 (very precise) /Black=0.09 (flawless)   Loses game:     	White=1     	---        Mistake:       	White=6     	Black=3      Inaccurate:     	White=8     	Black=7      OK:         	White=19    	Black=22     Best:        	White=4     	Black=7      Strong:       	White=2     	---} 0-1